[Event "January 2 Early 2024"]
[Site "https://www.chess.com"]
[Date "2024.01.02"]
[Round "7"]
[White "Bold, Andre"]
[Black "Seder, Mohammed"]
[Result "1-0"]
[Board "146"]
[TimeControl "180+1"]
[WhiteFideId "16208471"]
[BlackFideId "11505567"]
[WhiteElo "2509"]
[BlackElo "2320"]
[WhiteTeam "GER"]
[BlackTeam "PLE"]
[WhiteClock "0:01:30"]
[BlackClock "0:00:00"]

1. d4 {[%clk 0:03:00]}  d5 {[%clk 0:02:53]} 2. Nf3 {[%clk 0:03:00]}  Nf6 {[%clk 0:02:52]} 3. c3 {[%clk 0:03:00]}  c5 {[%clk 0:02:50]} 4. e3 {[%clk 0:03:00]}  Nc6 {[%clk 0:02:50]} 5. dxc5 {[%clk 0:02:58]}  e5 {[%clk 0:02:41]} 6. b4 {[%clk 0:02:57]}  a6 {[%clk 0:02:36]} 7. Bb2 {[%clk 0:02:53]}  Bg4 {[%clk 0:02:15]} 8. Be2 {[%clk 0:02:53]}  Be7 {[%clk 0:02:13]} 9. h3 {[%clk 0:02:52]}  Bh5 {[%clk 0:02:11]} 10. Nbd2 {[%clk 0:02:52]}  O-O {[%clk 0:02:10]} 11. O-O {[%clk 0:02:52]}  Qc7 {[%clk 0:02:01]} 12. a3 {[%clk 0:02:49]}  Rfd8 {[%clk 0:01:59]} 13. Re1 {[%clk 0:02:48]}  e4 {[%clk 0:01:42]} 14. Nd4 {[%clk 0:02:45]}  Bxe2 {[%clk 0:01:41]} 15. Qxe2 {[%clk 0:02:45]}  Ne5 {[%clk 0:01:42]} 16. c4 {[%clk 0:02:39]}  Nd3 {[%clk 0:01:29]} 17. Reb1 {[%clk 0:02:38]}  a5 {[%clk 0:01:13]} 18. cxd5 {[%clk 0:02:34]}  Rxd5 {[%clk 0:01:10]} 19. Bc3 {[%clk 0:02:23]}  b6 {[%clk 0:00:40]} 20. Nxe4 {[%clk 0:02:15]}  Nxe4 {[%clk 0:00:18]} 21. Qxd3 {[%clk 0:02:15]}  Nxc5 {[%clk 0:00:17]} 22. bxc5 {[%clk 0:02:11]}  bxc5 {[%clk 0:00:18]} 23. Qe4 {[%clk 0:02:05]}  Rad8 {[%clk 0:00:14]} 24. Nf3 {[%clk 0:02:01]}  Bd6 {[%clk 0:00:11]} 25. Kf1 {[%clk 0:01:44]}  Qc6 {[%clk 0:00:08]} 26. Qg4 {[%clk 0:01:40]}  f6 {[%clk 0:00:06]} 27. Qe6+ {[%clk 0:01:37]}  Kh8 {[%clk 0:00:05]} 28. Rd1 {[%clk 0:01:30]}  Qa6+ {[%clk 0:00:05]} 29. Ke1 {[%clk 0:01:30]}  Rxd1+ {[%clk 0:00:00]} 30. Rxd1 {[%clk 0:01:30]} 1-0

[Event "January 2 Early 2024"]
[Site "https://www.chess.com"]
[Date "2024.01.02"]
[Round "7"]
[White "Adireddy Arjun"]
[Black "Larina, Maria"]
[Result "1-0"]
[Board "148"]
[TimeControl "180+1"]
[WhiteFideId "25647709"]
[BlackFideId "24113182"]
[WhiteElo "2498"]
[BlackElo "2316"]
[WhiteTeam "IND"]
[BlackTeam "FID"]
[WhiteClock "0:00:28"]
[BlackClock "0:00:20"]

1. e4 {[%clk 0:03:00]}  c6 {[%clk 0:02:59]} 2. d4 {[%clk 0:02:57]}  d5 {[%clk 0:02:59]} 3. e5 {[%clk 0:02:55]}  Bf5 {[%clk 0:02:59]} 4. g4 {[%clk 0:02:55]}  Be4 {[%clk 0:02:59]} 5. f3 {[%clk 0:02:55]}  Bg6 {[%clk 0:02:59]} 6. e6 {[%clk 0:02:55]}  Qd6 {[%clk 0:02:59]} 7. exf7+ {[%clk 0:02:56]}  Bxf7 {[%clk 0:02:58]} 8. f4 {[%clk 0:02:56]}  g5 {[%clk 0:02:57]} 9. fxg5 {[%clk 0:02:56]}  Nd7 {[%clk 0:02:52]} 10. Nf3 {[%clk 0:02:55]}  e5 {[%clk 0:02:51]} 11. dxe5 {[%clk 0:02:54]}  Nxe5 {[%clk 0:02:46]} 12. Qe2 {[%clk 0:02:52]}  O-O-O {[%clk 0:02:38]} 13. Nxe5 {[%clk 0:02:51]}  Re8 {[%clk 0:02:35]} 14. Nxf7 {[%clk 0:02:48]}  Rxe2+ {[%clk 0:02:34]} 15. Bxe2 {[%clk 0:02:49]}  Qb4+ {[%clk 0:02:17]} 16. c3 {[%clk 0:02:47]}  Qe4 {[%clk 0:02:15]} 17. Rf1 {[%clk 0:02:45]}  Qc2 {[%clk 0:01:48]} 18. Nd2 {[%clk 0:01:51]}  Bg7 {[%clk 0:00:57]} 19. Nxh8 {[%clk 0:01:48]}  Bxh8 {[%clk 0:00:57]} 20. Rf8+ {[%clk 0:01:46]}  Kd7 {[%clk 0:00:58]} 21. Rxg8 {[%clk 0:01:45]}  Be5 {[%clk 0:00:57]} 22. Nf3 {[%clk 0:01:36]}  Bxc3+ {[%clk 0:00:54]} 23. bxc3 {[%clk 0:01:08]}  Qxc3+ {[%clk 0:00:55]} 24. Kf2 {[%clk 0:01:08]}  Qxa1 {[%clk 0:00:54]} 25. Bf4 {[%clk 0:01:09]}  d4 {[%clk 0:00:48]} 26. Ne5+ {[%clk 0:01:07]}  Ke6 {[%clk 0:00:45]} 27. Bc4+ {[%clk 0:00:59]}  Ke7 {[%clk 0:00:41]} 28. Rg7+ {[%clk 0:00:57]}  Kf8 {[%clk 0:00:39]} 29. Rxb7 {[%clk 0:00:37]}  Qc3 {[%clk 0:00:23]} 30. Nd7+ {[%clk 0:00:33]}  Ke8 {[%clk 0:00:20]} 31. Nf6+ {[%clk 0:00:29]}  Kf8 {[%clk 0:00:20]} 32. Rf7# {[%clk 0:00:28]} 1-0

[Event "January 2 Early 2024"]
[Site "https://www.chess.com"]
[Date "2024.01.02"]
[Round "7"]
[White "Kornyukov, Alexey"]
[Black "Pourkashiyan, Atousa"]
[Result "1-0"]
[Board "151"]
[TimeControl "180+1"]
[WhiteFideId "4150457"]
[BlackFideId "12502014"]
[WhiteElo "2298"]
[BlackElo "2464"]
[WhiteTeam "RUS"]
[BlackTeam "USA"]
[WhiteClock "0:00:10"]
[BlackClock "0:00:15"]

1. e4 {[%clk 0:02:58]}  c5 {[%clk 0:02:56]} 2. c3 {[%clk 0:02:56]}  d5 {[%clk 0:02:55]} 3. exd5 {[%clk 0:02:52]}  Qxd5 {[%clk 0:02:56]} 4. Nf3 {[%clk 0:02:51]}  Nf6 {[%clk 0:02:55]} 5. d4 {[%clk 0:02:49]}  Nc6 {[%clk 0:02:54]} 6. Bd3 {[%clk 0:02:48]}  Bg4 {[%clk 0:02:49]} 7. Be2 {[%clk 0:02:46]}  e6 {[%clk 0:02:47]} 8. O-O {[%clk 0:02:43]}  cxd4 {[%clk 0:02:44]} 9. cxd4 {[%clk 0:02:42]}  Be7 {[%clk 0:02:42]} 10. Nc3 {[%clk 0:02:33]}  Qd8 {[%clk 0:02:42]} 11. Be3 {[%clk 0:02:32]}  O-O {[%clk 0:02:42]} 12. h3 {[%clk 0:02:20]}  Bh5 {[%clk 0:02:40]} 13. Rc1 {[%clk 0:02:14]}  a6 {[%clk 0:02:32]} 14. a3 {[%clk 0:02:13]}  Qd6 {[%clk 0:02:32]} 15. Qd2 {[%clk 0:01:46]}  Rfd8 {[%clk 0:02:32]} 16. Rfd1 {[%clk 0:01:39]}  Nd5 {[%clk 0:02:30]} 17. Ne4 {[%clk 0:01:39]}  Qd7 {[%clk 0:02:24]} 18. Ng3 {[%clk 0:01:38]}  Bxf3 {[%clk 0:02:20]} 19. Bxf3 {[%clk 0:01:38]}  Nxe3 {[%clk 0:02:14]} 20. fxe3 {[%clk 0:01:38]}  Ne5 {[%clk 0:01:56]} 21. Qf2 {[%clk 0:01:31]}  Nxf3+ {[%clk 0:01:55]} 22. Qxf3 {[%clk 0:01:30]}  Rac8 {[%clk 0:01:51]} 23. Ne4 {[%clk 0:01:28]}  Qd5 {[%clk 0:01:46]} 24. Nc3 {[%clk 0:01:26]}  Qb3 {[%clk 0:01:39]} 25. Qe2 {[%clk 0:01:07]}  Bxa3 {[%clk 0:01:31]} 26. bxa3 {[%clk 0:01:01]}  Rxc3 {[%clk 0:01:31]} 27. Rb1 {[%clk 0:00:58]}  Qxa3 {[%clk 0:01:31]} 28. Rxb7 {[%clk 0:00:58]}  Rxe3 {[%clk 0:01:32]} 29. Qh5 {[%clk 0:00:55]}  g6 {[%clk 0:01:18]} 30. Qh6 {[%clk 0:00:55]}  Rf8 {[%clk 0:01:12]} 31. Rf1 {[%clk 0:00:51]}  Rg3 {[%clk 0:01:02]} 32. Qf4 {[%clk 0:00:45]}  Qe3+ {[%clk 0:01:01]} 33. Kh2 {[%clk 0:00:40]}  Qxf4 {[%clk 0:00:59]} 34. Rxf4 {[%clk 0:00:40]}  Rd3 {[%clk 0:00:58]} 35. Ra7 {[%clk 0:00:38]}  Ra3 {[%clk 0:00:57]} 36. g4 {[%clk 0:00:34]}  h6 {[%clk 0:00:57]} 37. h4 {[%clk 0:00:34]}  a5 {[%clk 0:00:56]} 38. g5 {[%clk 0:00:32]}  hxg5 {[%clk 0:00:56]} 39. hxg5 {[%clk 0:00:32]}  a4 {[%clk 0:00:56]} 40. Kg2 {[%clk 0:00:23]}  Ra2+ {[%clk 0:00:56]} 41. Kf3 {[%clk 0:00:23]}  a3 {[%clk 0:00:55]} 42. Rh4 {[%clk 0:00:23]}  Ra1 {[%clk 0:00:55]} 43. Rh2 {[%clk 0:00:14]}  Rb8 {[%clk 0:00:53]} 44. Kf4 {[%clk 0:00:13]}  Rd8 {[%clk 0:00:52]} 45. Ke5 {[%clk 0:00:13]}  Re1+ {[%clk 0:00:51]} 46. Kf6 {[%clk 0:00:13]}  Rf1+ {[%clk 0:00:51]} 47. Ke5 {[%clk 0:00:13]}  Rf5+ {[%clk 0:00:51]} 48. Ke4 {[%clk 0:00:13]}  Rxg5 {[%clk 0:00:51]} 49. Rxa3 {[%clk 0:00:12]}  Rg4+ {[%clk 0:00:52]} 50. Ke5 {[%clk 0:00:11]}  Rgxd4 {[%clk 0:00:52]} 51. Rah3 {[%clk 0:00:11]}  R4d5+ {[%clk 0:00:52]} 52. Kf6 {[%clk 0:00:11]}  Rf5+ {[%clk 0:00:52]} 53. Ke7 {[%clk 0:00:12]}  Rd7+ {[%clk 0:00:19]} 54. Kxd7 {[%clk 0:00:12]}  Kg7 {[%clk 0:00:20]} 55. Rh7+ {[%clk 0:00:12]}  Kf6 {[%clk 0:00:20]} 56. Kd6 {[%clk 0:00:11]}  Rd5+ {[%clk 0:00:20]} 57. Kc6 {[%clk 0:00:11]}  Rd3 {[%clk 0:00:20]} 58. Rf2+ {[%clk 0:00:11]}  Ke5 {[%clk 0:00:20]} 59. Rhxf7 {[%clk 0:00:11]}  g5 {[%clk 0:00:20]} 60. Rg7 {[%clk 0:00:11]}  Rg3 {[%clk 0:00:21]} 61. Rg6 {[%clk 0:00:11]}  g4 {[%clk 0:00:19]} 62. Rff6 {[%clk 0:00:12]}  Rc3+ {[%clk 0:00:18]} 63. Kd7 {[%clk 0:00:11]}  g3 {[%clk 0:00:19]} 64. Rxe6+ {[%clk 0:00:11]}  Kf5 {[%clk 0:00:19]} 65. Ref6+ {[%clk 0:00:12]}  Ke5 {[%clk 0:00:20]} 66. Rf1 {[%clk 0:00:11]}  Rd3+ {[%clk 0:00:19]} 67. Ke7 {[%clk 0:00:11]}  Re3 {[%clk 0:00:19]} 68. Rg1 {[%clk 0:00:11]}  Kd4+ {[%clk 0:00:19]} 69. Kf7 {[%clk 0:00:11]}  Ke4 {[%clk 0:00:19]} 70. R1xg3 {[%clk 0:00:10]}  Re2 {[%clk 0:00:15]} 71. R6g4+ {[%clk 0:00:10]} 1-0

[Event "January 2 Early 2024"]
[Site "https://www.chess.com"]
[Date "2024.01.02"]
[Round "7"]
[White "Dyulgerov, Volen"]
[Black "Skaric, Djuro"]
[Result "0-1"]
[Board "152"]
[TimeControl "180+1"]
[WhiteFideId "2918978"]
[BlackFideId "934569"]
[WhiteElo "2449"]
[BlackElo "2296"]
[WhiteTeam "BUL"]
[BlackTeam "SRB"]
[WhiteClock "0:00:00"]
[BlackClock "0:00:52"]

1. e4 {[%clk 0:03:00]}  d6 {[%clk 0:02:57]} 2. d4 {[%clk 0:03:00]}  g6 {[%clk 0:02:56]} 3. h4 {[%clk 0:02:59]}  Nf6 {[%clk 0:02:55]} 4. Nc3 {[%clk 0:02:59]}  Bg7 {[%clk 0:02:55]} 5. Bc4 {[%clk 0:02:58]}  Nc6 {[%clk 0:02:54]} 6. h5 {[%clk 0:02:43]}  Nxh5 {[%clk 0:02:51]} 7. Rxh5 {[%clk 0:02:44]}  gxh5 {[%clk 0:02:51]} 8. Qxh5 {[%clk 0:02:44]}  e6 {[%clk 0:02:51]} 9. Bg5 {[%clk 0:02:14]}  Qd7 {[%clk 0:02:34]} 10. d5 {[%clk 0:02:07]}  exd5 {[%clk 0:02:19]} 11. Nxd5 {[%clk 0:02:03]}  Ne5 {[%clk 0:02:18]} 12. Bf6 {[%clk 0:01:33]}  O-O {[%clk 0:01:59]} 13. Ne7+ {[%clk 0:00:32]}  Kh8 {[%clk 0:01:51]} 14. Qg5 {[%clk 0:00:14]}  Ng6 {[%clk 0:01:49]} 15. Qh6 {[%clk 0:00:14]}  Rg8 {[%clk 0:01:21]} 16. Nxg6+ {[%clk 0:00:01]}  fxg6 {[%clk 0:01:16]} 17. Bxg8 {[%clk 0:00:02]}  Kxg8 {[%clk 0:01:14]} 18. Bxg7 {[%clk 0:00:02]}  Qxg7 {[%clk 0:01:12]} 19. Qxg7+ {[%clk 0:00:02]}  Kxg7 {[%clk 0:01:12]} 20. Nf3 {[%clk 0:00:02]}  Be6 {[%clk 0:01:10]} 21. O-O-O {[%clk 0:00:02]}  h6 {[%clk 0:01:09]} 22. b3 {[%clk 0:00:02]}  Rf8 {[%clk 0:01:08]} 23. Rd2 {[%clk 0:00:01]}  g5 {[%clk 0:01:07]} 24. Nd4 {[%clk 0:00:01]}  Bd7 {[%clk 0:01:07]} 25. f3 {[%clk 0:00:01]}  Kf6 {[%clk 0:01:06]} 26. g4 {[%clk 0:00:01]}  Ke5 {[%clk 0:01:04]} 27. Ne2 {[%clk 0:00:02]}  Bc6 {[%clk 0:01:03]} 28. c4 {[%clk 0:00:02]}  Rh8 {[%clk 0:01:01]} 29. Ng3 {[%clk 0:00:01]}  Kf4 {[%clk 0:00:59]} 30. Nf5 {[%clk 0:00:01]}  Kxf3 {[%clk 0:00:58]} 31. Ne7 {[%clk 0:00:02]}  Kxg4 {[%clk 0:00:56]} 32. Rf2 {[%clk 0:00:01]}  Bxe4 {[%clk 0:00:56]} 33. Kd2 {[%clk 0:00:01]}  h5 {[%clk 0:00:55]} 34. Ke3 {[%clk 0:00:01]}  Bb1 {[%clk 0:00:54]} 35. b4 {[%clk 0:00:00]}  h4 {[%clk 0:00:52]} 0-1

[Event "January 2 Early 2024"]
[Site "https://www.chess.com"]
[Date "2024.01.02"]
[Round "7"]
[White "Blokhin, Sofia"]
[Black "Micic, Aleksa"]
[Result "0-1"]
[Board "153"]
[TimeControl "180+1"]
[WhiteFideId "4508190"]
[BlackFideId "989940"]
[WhiteElo "2295"]
[BlackElo "2426"]
[WhiteTeam "EST"]
[BlackTeam "SRB"]
[WhiteClock "0:00:04"]
[BlackClock "0:00:10"]

1. d4 {[%clk 0:03:00]}  Nf6 {[%clk 0:02:58]} 2. c4 {[%clk 0:02:59]}  c5 {[%clk 0:02:58]} 3. d5 {[%clk 0:02:58]}  b5 {[%clk 0:02:54]} 4. cxb5 {[%clk 0:02:58]}  a6 {[%clk 0:02:54]} 5. bxa6 {[%clk 0:02:57]}  g6 {[%clk 0:02:55]} 6. Nc3 {[%clk 0:02:57]}  Bg7 {[%clk 0:02:55]} 7. e4 {[%clk 0:02:57]}  O-O {[%clk 0:02:55]} 8. Be2 {[%clk 0:02:57]}  Qa5 {[%clk 0:02:55]} 9. Bd2 {[%clk 0:02:55]}  Bxa6 {[%clk 0:02:50]} 10. Nf3 {[%clk 0:02:54]}  d6 {[%clk 0:02:44]} 11. O-O {[%clk 0:02:54]}  Qb4 {[%clk 0:02:39]} 12. Re1 {[%clk 0:02:05]}  Nbd7 {[%clk 0:02:35]} 13. Nb5 {[%clk 0:01:42]}  Qxe4 {[%clk 0:01:47]} 14. Nc7 {[%clk 0:01:41]}  Bb7 {[%clk 0:01:36]} 15. Ba6 {[%clk 0:01:34]}  Qf5 {[%clk 0:01:28]} 16. Nxa8 {[%clk 0:00:57]}  Bxa6 {[%clk 0:01:21]} 17. Nc7 {[%clk 0:00:56]}  Bb7 {[%clk 0:01:14]} 18. Rxe7 {[%clk 0:00:54]}  Nxd5 {[%clk 0:01:11]} 19. Nxd5 {[%clk 0:00:52]}  Bxd5 {[%clk 0:01:10]} 20. Nh4 {[%clk 0:00:43]}  Qf6 {[%clk 0:01:03]} 21. Rxd7 {[%clk 0:00:38]}  Qxh4 {[%clk 0:01:01]} 22. Rxd6 {[%clk 0:00:32]}  Qe4 {[%clk 0:00:45]} 23. Qf1 {[%clk 0:00:17]}  Be5 {[%clk 0:00:39]} 24. Rxd5 {[%clk 0:00:15]}  Qxd5 {[%clk 0:00:38]} 25. Bc3 {[%clk 0:00:14]}  Bxc3 {[%clk 0:00:32]} 26. bxc3 {[%clk 0:00:15]}  Rb8 {[%clk 0:00:33]} 27. Rd1 {[%clk 0:00:14]}  Qxa2 {[%clk 0:00:32]} 28. Qd3 {[%clk 0:00:12]}  Qb3 {[%clk 0:00:29]} 29. h3 {[%clk 0:00:12]}  Ra8 {[%clk 0:00:23]} 30. Qf3 {[%clk 0:00:10]}  Ra3 {[%clk 0:00:19]} 31. Rd8+ {[%clk 0:00:10]}  Kg7 {[%clk 0:00:19]} 32. Rd7 {[%clk 0:00:10]}  Qb1+ {[%clk 0:00:16]} 33. Kh2 {[%clk 0:00:10]}  Qf5 {[%clk 0:00:17]} 34. Qxf5 {[%clk 0:00:08]}  gxf5 {[%clk 0:00:17]} 35. Rd3 {[%clk 0:00:07]}  c4 {[%clk 0:00:16]} 36. Re3 {[%clk 0:00:06]}  Kf6 {[%clk 0:00:15]} 37. Kg3 {[%clk 0:00:06]}  Ra2 {[%clk 0:00:13]} 38. Kf3 {[%clk 0:00:06]}  Rd2 {[%clk 0:00:12]} 39. g4 {[%clk 0:00:03]}  f4 {[%clk 0:00:12]} 40. Kxf4 {[%clk 0:00:03]}  Rxf2+ {[%clk 0:00:12]} 41. Ke4 {[%clk 0:00:03]}  Kg5 {[%clk 0:00:09]} 42. Kd4 {[%clk 0:00:04]}  Rf4+ {[%clk 0:00:08]} 43. Kd5 {[%clk 0:00:04]}  h5 {[%clk 0:00:05]} 44. Kd6 {[%clk 0:00:03]}  hxg4 {[%clk 0:00:05]} 45. hxg4 {[%clk 0:00:04]}  Kxg4 {[%clk 0:00:06]} 46. Kd5 {[%clk 0:00:04]}  f5 {[%clk 0:00:06]} 47. Ke5 {[%clk 0:00:03]}  Rf1 {[%clk 0:00:05]} 48. Kd5 {[%clk 0:00:02]}  f4 {[%clk 0:00:05]} 49. Re4 {[%clk 0:00:02]}  Rd1+ {[%clk 0:00:05]} 50. Kxc4 {[%clk 0:00:02]}  Kf5 {[%clk 0:00:05]} 51. Re8 {[%clk 0:00:02]}  f3 {[%clk 0:00:06]} 52. Rf8+ {[%clk 0:00:02]}  Ke4 {[%clk 0:00:06]} 53. Kb3 {[%clk 0:00:03]}  Ke3 {[%clk 0:00:06]} 54. Kc2 {[%clk 0:00:03]}  Rd7 {[%clk 0:00:06]} 55. c4 {[%clk 0:00:02]}  Ke2 {[%clk 0:00:05]} 56. Re8+ {[%clk 0:00:02]}  Kf2 {[%clk 0:00:05]} 57. Rf8 {[%clk 0:00:03]}  Rg7 {[%clk 0:00:04]} 58. Kc3 {[%clk 0:00:03]}  Kg2 {[%clk 0:00:05]} 59. Kb4 {[%clk 0:00:03]}  f2 {[%clk 0:00:05]} 60. c5 {[%clk 0:00:03]}  Rg3 {[%clk 0:00:06]} 61. Kb5 {[%clk 0:00:03]}  Rf3 {[%clk 0:00:06]} 62. Rg8+ {[%clk 0:00:03]}  Kh3 {[%clk 0:00:07]} 63. Rh8+ {[%clk 0:00:03]}  Kg4 {[%clk 0:00:07]} 64. Rh1 {[%clk 0:00:03]}  f1=Q+ {[%clk 0:00:04]} 65. Rxf1 {[%clk 0:00:02]}  Rxf1 {[%clk 0:00:05]} 66. Kb6 {[%clk 0:00:03]}  Rb1+ {[%clk 0:00:05]} 67. Kc7 {[%clk 0:00:02]}  Kf5 {[%clk 0:00:05]} 68. c6 {[%clk 0:00:03]}  Ke6 {[%clk 0:00:06]} 69. Kc8 {[%clk 0:00:03]}  Kd6 {[%clk 0:00:07]} 70. c7 {[%clk 0:00:04]}  Rc1 {[%clk 0:00:07]} 71. Kb8 {[%clk 0:00:04]}  Rxc7 {[%clk 0:00:07]} 72. Ka8 {[%clk 0:00:04]}  Kc6 {[%clk 0:00:08]} 73. Kb8 {[%clk 0:00:04]}  Rh7 {[%clk 0:00:08]} 74. Ka8 {[%clk 0:00:04]}  Kb6 {[%clk 0:00:09]} 75. Kb8 {[%clk 0:00:04]}  Rh8# {[%clk 0:00:10]} 0-1

[Event "January 2 Early 2024"]
[Site "https://www.chess.com"]
[Date "2024.01.02"]
[Round "7"]
[White "Gabdushev, Ruslan"]
[Black "Monpeurt, Cyrielle"]
[Result "1-0"]
[Board "157"]
[TimeControl "180+1"]
[WhiteFideId "4137833"]
[BlackFideId "677400"]
[WhiteElo "2414"]
[BlackElo "2288"]
[WhiteTeam "RUS"]
[BlackTeam "FRA"]
[WhiteClock "0:00:20"]
[BlackClock "0:00:04"]

1. b3 {[%clk 0:03:00]}  g6 {[%clk 0:02:58]} 2. Bb2 {[%clk 0:02:59]}  Nf6 {[%clk 0:02:58]} 3. Bxf6 {[%clk 0:02:59]}  exf6 {[%clk 0:02:59]} 4. e3 {[%clk 0:02:59]}  d5 {[%clk 0:02:56]} 5. d4 {[%clk 0:02:58]}  Bd6 {[%clk 0:02:48]} 6. g3 {[%clk 0:02:57]}  O-O {[%clk 0:02:48]} 7. Bg2 {[%clk 0:02:57]}  c6 {[%clk 0:02:48]} 8. Ne2 {[%clk 0:02:56]}  Qa5+ {[%clk 0:02:46]} 9. Qd2 {[%clk 0:02:52]}  Qxd2+ {[%clk 0:02:38]} 10. Kxd2 {[%clk 0:02:50]}  f5 {[%clk 0:02:33]} 11. c4 {[%clk 0:02:47]}  Be6 {[%clk 0:02:33]} 12. cxd5 {[%clk 0:02:45]}  Bxd5 {[%clk 0:02:31]} 13. Bxd5 {[%clk 0:02:44]}  cxd5 {[%clk 0:02:32]} 14. Nbc3 {[%clk 0:02:44]}  Bb4 {[%clk 0:02:25]} 15. Rac1 {[%clk 0:02:39]}  Nd7 {[%clk 0:02:17]} 16. Kd3 {[%clk 0:02:37]}  Nf6 {[%clk 0:02:13]} 17. Nb5 {[%clk 0:02:32]}  a6 {[%clk 0:02:04]} 18. Nbc3 {[%clk 0:02:31]}  Rac8 {[%clk 0:02:02]} 19. f3 {[%clk 0:02:26]}  Rc7 {[%clk 0:01:54]} 20. Nf4 {[%clk 0:02:23]}  Rfc8 {[%clk 0:01:50]} 21. Nce2 {[%clk 0:02:22]}  Ba3 {[%clk 0:01:41]} 22. Rxc7 {[%clk 0:02:20]}  Rxc7 {[%clk 0:01:42]} 23. Nc3 {[%clk 0:02:17]}  Rd7 {[%clk 0:01:38]} 24. Rb1 {[%clk 0:02:10]}  Bb4 {[%clk 0:01:36]} 25. Rc1 {[%clk 0:02:05]}  Ba3 {[%clk 0:01:35]} 26. Rc2 {[%clk 0:02:05]}  Kf8 {[%clk 0:01:33]} 27. Na4 {[%clk 0:01:57]}  g5 {[%clk 0:01:17]} 28. Nh3 {[%clk 0:01:46]}  h6 {[%clk 0:01:17]} 29. Nb6 {[%clk 0:01:44]}  Re7 {[%clk 0:01:12]} 30. Ng1 {[%clk 0:01:38]}  Bb4 {[%clk 0:00:56]} 31. Ne2 {[%clk 0:01:32]}  Ba5 {[%clk 0:00:56]} 32. Na4 {[%clk 0:01:27]}  b5 {[%clk 0:00:54]} 33. Nc5 {[%clk 0:01:26]}  Ra7 {[%clk 0:00:45]} 34. h3 {[%clk 0:01:26]}  Bb4 {[%clk 0:00:41]} 35. g4 {[%clk 0:01:25]}  fxg4 {[%clk 0:00:39]} 36. hxg4 {[%clk 0:01:20]}  h5 {[%clk 0:00:38]} 37. gxh5 {[%clk 0:01:18]}  Nxh5 {[%clk 0:00:38]} 38. Rc1 {[%clk 0:01:15]}  Nf6 {[%clk 0:00:31]} 39. Ng3 {[%clk 0:01:14]}  g4 {[%clk 0:00:31]} 40. fxg4 {[%clk 0:01:08]}  Nxg4 {[%clk 0:00:31]} 41. Nf5 {[%clk 0:01:08]}  f6 {[%clk 0:00:28]} 42. Rg1 {[%clk 0:01:04]}  Nf2+ {[%clk 0:00:25]} 43. Ke2 {[%clk 0:01:04]}  Bxc5 {[%clk 0:00:25]} 44. Kxf2 {[%clk 0:01:01]}  Bb4 {[%clk 0:00:21]} 45. Rg6 {[%clk 0:01:00]}  Rf7 {[%clk 0:00:16]} 46. Rh6 {[%clk 0:00:55]}  Ke8 {[%clk 0:00:16]} 47. Rh8+ {[%clk 0:00:54]}  Kd7 {[%clk 0:00:17]} 48. Ra8 {[%clk 0:00:54]}  Ke6 {[%clk 0:00:17]} 49. Ng3 {[%clk 0:00:51]}  a5 {[%clk 0:00:16]} 50. Kf3 {[%clk 0:00:51]}  Rh7 {[%clk 0:00:16]} 51. Ra6+ {[%clk 0:00:50]}  Kf7 {[%clk 0:00:16]} 52. Kg2 {[%clk 0:00:48]}  Kg6 {[%clk 0:00:16]} 53. Ne2 {[%clk 0:00:48]}  Be1 {[%clk 0:00:15]} 54. Nf4+ {[%clk 0:00:47]}  Kf5 {[%clk 0:00:16]} 55. Nxd5 {[%clk 0:00:46]}  Rg7+ {[%clk 0:00:16]} 56. Kf3 {[%clk 0:00:46]}  Rg3+ {[%clk 0:00:16]} 57. Ke2 {[%clk 0:00:46]}  Bb4 {[%clk 0:00:13]} 58. Nxf6 {[%clk 0:00:45]}  Rg6 {[%clk 0:00:11]} 59. e4+ {[%clk 0:00:44]}  Kf4 {[%clk 0:00:06]} 60. Nh5+ {[%clk 0:00:41]}  Kg5 {[%clk 0:00:07]} 61. Rxg6+ {[%clk 0:00:41]}  Kxg6 {[%clk 0:00:08]} 62. Nf4+ {[%clk 0:00:40]}  Kg5 {[%clk 0:00:08]} 63. Nd5 {[%clk 0:00:40]}  Bf8 {[%clk 0:00:07]} 64. Kf3 {[%clk 0:00:38]}  a4 {[%clk 0:00:06]} 65. bxa4 {[%clk 0:00:38]}  bxa4 {[%clk 0:00:07]} 66. Nc3 {[%clk 0:00:35]}  a3 {[%clk 0:00:07]} 67. d5 {[%clk 0:00:32]}  Bb4 {[%clk 0:00:06]} 68. Nb5 {[%clk 0:00:31]}  Kf6 {[%clk 0:00:05]} 69. Ke3 {[%clk 0:00:30]}  Ke5 {[%clk 0:00:05]} 70. Kd3 {[%clk 0:00:31]}  Bc5 {[%clk 0:00:05]} 71. Nc7 {[%clk 0:00:30]}  Kd6 {[%clk 0:00:05]} 72. Ne6 {[%clk 0:00:29]}  Bb4 {[%clk 0:00:05]} 73. Kd4 {[%clk 0:00:29]}  Be1 {[%clk 0:00:05]} 74. e5+ {[%clk 0:00:29]}  Ke7 {[%clk 0:00:05]} 75. Nf4 {[%clk 0:00:26]}  Bf2+ {[%clk 0:00:05]} 76. Ke4 {[%clk 0:00:26]}  Be1 {[%clk 0:00:05]} 77. Kf5 {[%clk 0:00:25]}  Bd2 {[%clk 0:00:04]} 78. Ng6+ {[%clk 0:00:25]}  Kf7 {[%clk 0:00:05]} 79. e6+ {[%clk 0:00:25]}  Ke8 {[%clk 0:00:05]} 80. d6 {[%clk 0:00:24]}  Bb4 {[%clk 0:00:05]} 81. Ke5 {[%clk 0:00:23]}  Bc3+ {[%clk 0:00:05]} 82. Kd5 {[%clk 0:00:23]}  Bb4 {[%clk 0:00:06]} 83. Kc6 {[%clk 0:00:22]}  Bxd6 {[%clk 0:00:06]} 84. Kxd6 {[%clk 0:00:22]}  Kd8 {[%clk 0:00:04]} 85. e7+ {[%clk 0:00:20]} 1-0